bitfinex-derivatives/quotes_ETHF0:USTF0_20250531
["timestamp","ask_amount","ask_price","bid_price","bid_amount"]
[1748654944428,0.79673,2509.3,2509.1,0.00598552]
[1748654944626,0.79674,2509.2,2509.1,1.27728552]
[1748654945126,1.3354,2509.4,2509.1,1.27728552]
[1748654945329,0.79674,2509.2,2509.1,1.27728552]
[1748654945523,0.79674,2509.2,2509.1,0.00598552]
[1748654946025,0.79672,2509.3,2509.1,0.00598552]
[1748654946220,1.0263,2509.6,2509.1,2.07405552]
[1748654946425,0.79674,2509.2,2509.1,0.00598552]
[1748654946929,0.79672,2509.3,2509.1,0.00598552]
[1748654947230,1.0263,2509.6,2509.1,1.27728552]
[1748654947525,0.79668,2509.4,2509.2,0.79672]
[1748654947727,1.0263,2509.6,2509.3,1.3522]
[1748654948030,4.0044,2509.7,2509.4,0.79667]
[1748654948231,0.79661,2509.6,2509.5,5.219]
[1748654948927,2.07341,2509.6,2509.5,5.219]
[1748654949727,3.12361,2509.6,2509.5,5.219]
[1748654949929,0.7967,2509.4,2509.1,6.02173552]
[1748654950325,0.79672,2509.3,2509.2,1.3522]
[1748654950529,0.79669,2509.4,2509.2,1.3522]
[1748654950732,0.79671,2509.3,2509.2,1.3522]
[1748654951325,2.327,2509.6,2509.2,1.3522]
[1748654951928,3.2078,2509.7,2509.2,1.3522]
[1748654952129,3.2078,2509.7,2509.5,0.79663]
[1748654952328,3.2078,2509.7,2509.3,0.9517]
[1748654952530,0.79663,2509.6,2509.3,3.1013]
[1748654953120,0.79665,2509.5,2509.3,3.1013]
[1748654953325,3.2078,2509.4,2509.1,5.22498552]
[1748654953531,0.79673,2509.3,2509.1,6.57788552]
[1748654953732,0.79666,2509.5,2509.1,6.57788552]
[1748654954032,0.79665,2509.5,2509.3,0.7967]
[1748654954334,0.79659,2509.7,2509.5,0.79663]
[1748654954635,0.79659,2509.7,2509.6,1.2779]
[1748654955228,0.79671,2509.3,2509.2,3.2078]
[1748654955428,1.2422,2509.6,2509.2,9.14052]
[1748654955635,0.79668,2509.4,2509.3,1.2779]
[1748654956534,0.79665,2509.5,2509.3,2.07459]
[1748654956831,3.2078,2509.8,2509.3,1.2779]
[1748654957135,0.79658,2509.7,2509.5,0.79663]
[1748654957332,4.00437,2509.8,2509.6,2.14761]
[1748654957532,4.00437,2509.8,2509.7,6.487]
[1748654958335,4.00437,2509.8,2509.7,5.136]
[1748654958536,5.25557,2509.8,2509.7,5.136]
[1748654959623,5.37160544,2509.8,2509.7,5.136]
[1748654960228,4.00437,2509.8,2509.7,5.136]
[1748654960435,5.32977,2509.8,2509.7,5.136]
[1748654961031,4.00437,2509.8,2509.7,5.136]
[1748654961431,5.32977,2509.8,2509.7,5.136]
[1748654962341,6.6973984,2509.8,2509.7,5.136]
[1748654962834,0.79671,2509.3,2509.2,1.3184]
[1748654963033,0.79662,2509.6,2509.3,5.136]
[1748654963233,5.9008284,2509.8,2509.4,2.16426]
[1748654963434,0.79663,2509.6,2509.4,1.3676]
[1748654963942,0.79656,2509.8,2509.4,1.3676]
[1748654964136,1.0297,2509.9,2509.4,1.3676]
[1748654964137,1.82624,2509.9,2509.4,1.3676]
[1748654964438,0.79656,2509.8,2509.6,0.7966]
[1748654964733,5.5425,2510.1,2509.4,1.3676]
[1748654965040,0.00598552,2510.4,2510.3,0.79639]
[1748654965643,0.00598552,2510.4,2510.3,1.3676]
[1748654965836,0.80234552,2510.4,2510.3,1.3676]
[1748654966141,0.00598552,2510.4,2510.3,1.3676]
[1748654966342,0.00598552,2510.4,2510.3,2.16399]
[1748654967041,0.00598552,2510.4,2510.3,1.3676]
[1748654967236,0.00598552,2510.4,2510.3,2.16399]
[1748654967644,0.00598552,2510.4,2510.3,3.22309]
[1748654967840,0.00598552,2510.4,2510.3,2.4267]
[1748654968040,0.00598552,2510.4,2510.3,3.22309]
[1748654968644,0.00598552,2510.4,2510.3,8.22309]
[1748654968841,0.00598552,2510.4,2510.3,2.4267]
[1748654969039,0.00598552,2510.4,2510.3,3.22309]
[1748654969345,0.00598552,2510.4,2510.3,2.4267]
[1748654970146,0.80234552,2510.4,2510.3,2.4267]
[1748654970837,0.00598552,2510.4,2510.3,6.43089]
[1748654971039,0.00598552,2510.4,2510.3,11.43089]
[1748654971944,1.2735,2511.2,2510.3,11.43089]
[1748654971945,3.2078,2511.2,2510.3,10.6345]
[1748654972240,0.79614,2511.1,2510.7,0.79625]
[1748654972440,3.2078,2511.2,2510.8,6.4625]
[1748654972744,0.79618,2511.0,2510.8,6.4625]
[1748654973247,0.7962,2510.9,2510.8,6.4625]
[1748654974045,0.7962,2510.9,2510.6,3.21378552]
[1748654974046,0.79626,2510.7,2510.6,0.00598552]
[1748654974742,3.01096,2510.7,2510.6,0.00598552]
[1748654977635,0.9628,2510.7,2510.6,0.00598552]
[1748654977848,1.3042,2511.1,2510.6,0.80226552]
[1748654978041,3.21378552,2511.2,2510.7,1.3406]
[1748654978247,4.48978552,2511.2,2510.7,2.13685]
[1748654978542,4.48978552,2511.2,2510.7,1.3406]
[1748654978543,0.79617,2511.0,2510.7,1.3406]
[1748654978749,0.79617,2511.0,2510.7,2.13685]
[1748654979049,0.7962,2510.9,2510.7,2.13685]
[1748654979347,0.1991,2511.1,2510.8,1.3406]
[1748654979547,0.1991,2511.1,2510.9,5.134]
[1748654979849,0.79619,2511.0,2510.9,5.134]
[1748654983852,0.79626,2510.7,2510.6,0.00598552]
[1748654984147,4.00406,2510.7,2510.6,0.00598552]
[1748654984938,5.32726,2510.7,2510.6,0.00598552]
[1748654985143,5.32726,2510.7,2510.6,5.52e-06]
[1748654987151,10.32726,2510.7,2510.6,5.52e-06]
[1748654987750,11.69023299,2510.7,2510.6,5.52e-06]
[1748654987944,0.79658,2509.7,2509.6,5.125]
[1748654989149,0.79665,2509.5,2509.4,0.00598552]
[1748654989351,4.00445,2509.5,2509.4,0.00598552]
[1748654991449,0.79693,2508.7,2508.3,7.2967]
[1748654991651,3.2078,2509.1,2508.5,1.3747]
[1748654991848,5.5651,2509.1,2508.5,1.3747]
[1748654992150,0.79688,2508.8,2508.5,1.3747]
[1748654992343,0.7969,2508.7,2508.5,1.3747]
[1748654992957,0.79688,2508.8,2508.5,2.17166]
[1748654993148,0.79691,2508.7,2508.5,1.3747]
[1748654993349,5.5651,2509.1,2508.6,0.79691]
[1748654993547,0.79686,2508.9,2508.5,2.17165]
[1748654993755,3.2078,2509.5,2508.8,3.2078]
[1748654994055,3.2078,2509.5,2508.9,6.402]
[1748654994251,0.79671,2509.3,2509.0,6.96318]
[1748654994553,0.79674,2509.2,2509.1,1.276]
[1748654994851,0.79673,2509.3,2509.1,1.276]
[1748654995055,0.79674,2509.2,2509.1,1.276]
[1748654995559,4.00447,2509.5,2509.2,0.79672]
[1748654995755,3.21378552,2509.9,2509.3,1.276]
[1748654996059,0.79661,2509.6,2509.4,0.79665]
[1748654996261,0.79661,2509.6,2509.5,6.4328]
[1748654998367,0.7966,2509.7,2509.5,6.4328]
[1748654999059,0.79661,2509.6,2509.5,6.4328]
[1748654999559,0.7966,2509.7,2509.5,6.4328]
[1748655000062,0.79661,2509.6,2509.5,6.4328]
[1748655000261,3.21378552,2509.9,2509.5,6.4328]
[1748655000467,0.00598552,2509.9,2509.8,0.79655]
[1748655000656,0.00598552,2509.9,2509.8,4.00435]
[1748655000858,4.0041,2510.6,2509.9,1.99128]
[1748655001059,4.0041,2510.6,2509.8,8.2078]
[1748655001060,3.2078,2510.6,2510.4,0.79635]
[1748655001355,0.79628,2510.7,2510.5,0.79632]
[1748655001551,4.00408,2510.7,2510.5,5.92232]
[1748655001852,4.00408,2510.7,2510.6,1.3621]
[1748655002062,0.79636,2510.4,2510.3,0.00598552]
[1748655002267,0.79636,2510.4,2510.3,5.52e-06]
[1748655002452,9.00416,2510.4,2510.3,5.52e-06]
[1748655002658,0.79661,2509.6,2509.5,5.126]
[1748655003263,4.00441,2509.7,2509.5,5.126]
[1748655003465,0.79658,2509.7,2509.5,5.126]
[1748655003660,0.79661,2509.6,2509.5,5.126]
[1748655003856,3.2078,2509.7,2509.5,5.126]
[1748655004458,3.2078,2509.7,2509.6,1.253]
[1748655004669,4.00438,2509.7,2509.6,1.253]
[1748655005163,0.79661,2509.6,2509.5,5.126]
[1748655005760,2.3977,2509.6,2509.1,5.126]
[1748655005960,5.61148552,2509.6,2509.1,6.3694]
[1748655006264,4.25738552,2509.6,2509.2,2.04012]
[1748655006459,4.01042552,2509.6,2509.3,0.79671]
[1748655006663,3.21378552,2509.6,2509.3,1.2434]
[1748655006865,0.79668,2509.4,2509.3,1.2434]
[1748655007565,3.21378552,2509.6,2509.3,1.2434]
[1748655007764,0.00598552,2509.6,2509.5,0.79665]
[1748655007963,3.2078,2510.2,2509.3,11.44291]
[1748655008163,3.2078,2510.6,2509.8,3.2078]
[1748655008366,3.2078,2510.6,2510.2,3.2078]
[1748655008567,4.36789167,2510.8,2510.3,1.3301]
[1748655008568,2.32039167,2510.8,2510.3,1.3301]
[1748655008766,0.79633,2510.5,2510.4,5.127]
[1748655008964,1.99055,2510.9,2510.4,5.92334]
[1748655008965,1.00135552,2510.7,2510.4,5.92334]
[1748655009165,0.7963,2510.6,2510.5,1.3301]
[1748655009366,0.20508552,2510.7,2510.5,2.12641]
[1748655009568,1.00135552,2510.7,2510.5,1.3301]
[1748655009966,0.20508552,2510.7,2510.5,6.3301]
[1748655010164,0.20508552,2510.7,2510.5,2.373]
[1748655010768,0.7963,2510.6,2510.5,2.373]
[1748655010966,0.7963,2510.6,2510.5,7.499]
[1748655011168,1.00136552,2510.7,2510.5,7.499]
[1748655011370,0.20508552,2510.7,2510.5,8.29531]
[1748655011564,0.20508552,2510.7,2510.5,7.499]
[1748655011766,0.20508552,2510.7,2510.5,8.29531]
[1748655011971,0.20508552,2510.7,2510.5,8.29532]
[1748655012171,0.20508552,2510.7,2510.5,7.499]
[1748655012371,0.20508552,2510.7,2510.5,8.29533]
[1748655012870,0.20508552,2510.7,2510.6,3.2078]
[1748655013169,0.7963,2510.6,2510.5,7.499]
[1748655013381,0.20508552,2510.7,2510.5,7.499]
[1748655013671,0.20508552,2510.7,2510.5,8.29531]
[1748655014270,0.20508552,2510.7,2510.5,7.499]
[1748655014466,4.0041,2510.6,2510.5,5.109]
[1748655014868,4.0041,2510.6,2510.5,6.3953]
[1748655015267,3.2078,2510.6,2510.5,6.3953]
[1748655015471,0.20508552,2510.7,2510.6,0.7963]
[1748655015774,0.20508552,2510.7,2510.6,4.0041]
[1748655015971,0.20508552,2510.7,2510.6,3.2078]
[1748655016170,1.00134552,2510.7,2510.6,5.109]
[1748655016367,0.20508552,2510.7,2510.4,0.5975]
[1748655016572,0.79633,2510.5,2510.4,5.7065]
[1748655017273,0.79639,2510.3,2510.2,0.00598552]
[1748655017475,4.00419,2510.3,2510.2,5.52e-06]
[1748655017673,9.00419,2510.3,2510.2,5.52e-06]
[1748655018676,4.00419,2510.3,2510.2,5.52e-06]
[1748655018876,9.00419,2510.3,2510.2,5.52e-06]
[1748655019877,10.36003231,2510.3,2510.2,5.52e-06]
[1748655020282,0.79665,2509.5,2509.4,5.109]
[1748655020574,3.2078,2509.5,2508.4,40.159]
[1748655020779,0.79687,2508.8,2508.5,5.109]
[1748655021082,3.2078,2509.0,2508.5,5.109]
[1748655021276,3.2078,2508.6,2508.5,5.7069]
[1748655021475,0.00598552,2509.0,2508.9,0.79684]
[1748655021777,0.00598552,2509.0,2508.9,4.00464]
[1748655021973,3.2078,2509.6,2509.0,1.99202]
[1748655022179,3.2078,2509.6,2509.5,0.79665]
[1748655022573,3.2078,2509.6,2509.3,1.3009]
[1748655023081,3.2078,2509.6,2509.4,0.79666]
[1748655023282,3.2078,2509.6,2509.5,1.3009]
[1748655024081,0.00598552,2509.7,2509.5,1.3009]
[1748655024382,0.79668,2509.4,2509.3,5.11]
[1748655024682,0.79687,2508.8,2508.7,0.00598552]
[1748655025085,5.79687,2508.8,2508.7,0.00598552]
[1748655025277,8.07647,2508.8,2508.7,0.00598552]
[1748655026089,3.07647,2508.8,2508.7,0.00598552]
[1748655026385,3.2078,2508.9,2508.7,0.00598552]
[1748655026573,0.79687,2508.8,2508.7,0.00598552]
[1748655026983,0.79684,2508.9,2508.7,0.00598552]
[1748655027179,3.2078,2508.8,2508.7,0.00598552]
[1748655027380,1.3102,2509.1,2508.7,0.00598552]
[1748655027879,0.1992,2509.0,2508.7,0.00598552]
[1748655028085,0.79687,2508.8,2508.7,0.00598552]
[1748655028285,0.1992,2509.0,2508.7,0.00598552]
[1748655028582,0.1992,2509.0,2508.9,0.79684]
[1748655028785,0.1992,2509.0,2508.9,5.90684]
[1748655029186,0.1992,2509.0,2508.9,15.22074]
[1748655029788,0.1992,2509.0,2508.9,12.01294]
[1748655029989,0.1992,2509.0,2508.9,15.22074]
[1748655030877,0.99601,2509.0,2508.9,6.2161]
[1748655031083,0.79684,2508.9,2508.8,1.3108]
[1748655031284,3.407,2509.0,2508.7,0.00598552]
[1748655031483,0.79687,2508.8,2508.7,0.00598552]
[1748655031878,2.16256,2508.9,2508.7,0.00598552]
[1748655032084,3.407,2509.0,2508.7,0.00598552]
[1748655032292,4.20382,2509.0,2508.7,0.80287552]
[1748655032590,0.1992,2509.0,2508.8,1.3365]
[1748655032790,0.1992,2509.0,2508.9,0.79684]
[1748655033284,0.1992,2509.0,2508.9,9.00464]
[1748655033591,0.79662,2509.6,2509.3,0.79669]
[1748655033789,0.79662,2509.6,2509.4,6.4331]
[1748655034488,0.80257552,2509.7,2509.4,6.4331]
[1748655034691,0.80257552,2509.7,2509.3,0.79669]
[1748655034692,3.2078,2509.5,2508.6,4.2241]
[1748655034892,0.79673,2509.3,2508.9,0.79681]
[1748655035191,3.2078,2509.5,2509.0,1.3221]
[1748655035489,3.2078,2509.3,2509.0,1.3221]
[1748655035685,0.79674,2509.3,2509.0,1.3221]
[1748655035892,0.1992,2509.2,2509.1,0.79677]
[1748655036389,5.36533,2509.6,2509.1,0.79677]
[1748655036390,3.2078,2509.6,2509.5,0.79665]
[1748655036588,0.00598552,2509.7,2509.6,0.79662]
[1748655036793,0.00598552,2509.7,2509.6,5.30762]
[1748655036988,5.52819167,2510.5,2510.4,0.79636]
[1748655037192,3.2078,2510.5,2510.4,5.90736]
[1748655037591,1.0435,2511.1,2510.9,0.79619]
[1748655037592,3.2078,2511.0,2510.9,0.79619]
[1748655037784,5.52819167,2511.3,2510.9,5.111]
[1748655037992,4.00389,2511.3,2510.9,5.90718]
[1748655038193,0.79612,2511.2,2510.9,5.90718]
[1748655038484,0.1991,2511.1,2510.9,5.111]
[1748655038684,0.99526,2511.1,2510.9,5.111]
[1748655038885,0.1991,2511.1,2510.9,5.111]
[1748655039399,0.1991,2511.1,2510.9,5.9072]
[1748655039598,0.1991,2511.1,2510.9,5.111]
[1748655039800,0.1991,2511.1,2511.0,0.79617]
[1748655040191,0.1991,2511.1,2511.0,2.13347]
[1748655040392,0.1991,2511.1,2511.0,1.3373]
[1748655040592,0.1991,2511.1,2511.0,2.13347]
[1748655041299,0.1991,2511.1,2511.0,1.3373]
[1748655041501,0.99526,2511.1,2510.9,5.111]
[1748655042001,0.99526,2511.1,2510.9,5.11]
[1748655042197,0.1991,2511.1,2510.9,6.4849]
[1748655042599,4.00397,2511.0,2510.9,5.11]
[1748655042789,0.7962,2510.9,2510.8,0.00597348]
[1748655042988,3.112,2510.9,2510.8,0.00597348]
[1748655044598,8.112,2510.9,2510.8,0.00597348]
[1748655044794,9.1117,2510.9,2510.8,0.00597348]
[1748655045895,9.1117,2510.9,2510.8,3.48e-06]
[1748655046497,3.3155,2510.9,2510.8,3.48e-06]
[1748655046698,2.0586,2510.9,2510.8,3.48e-06]
[1748655046901,1.0589,2510.9,2510.8,0.79623348]
[1748655047401,0.99526,2511.1,2510.8,3.48e-06]
[1748655047597,3.2078,2511.0,2510.8,3.48e-06]
[1748655047807,0.7962,2510.9,2510.8,3.48e-06]
[1748655047998,2.0386,2510.9,2510.8,3.48e-06]
[1748655048896,3.2078,2511.0,2510.8,3.48e-06]
[1748655049097,0.7962,2510.9,2510.8,3.48e-06]
[1748655049503,2.0386,2510.9,2510.8,3.48e-06]
[1748655049797,0.7962,2510.9,2510.8,3.48e-06]
[1748655050002,3.2078,2511.0,2510.8,3.48e-06]
[1748655050203,0.7962,2510.9,2510.8,3.48e-06]
[1748655050406,2.0386,2510.9,2510.8,3.48e-06]
[1748655050595,7.0386,2510.9,2510.8,3.48e-06]
[1748655052496,8.38802871,2510.9,2510.8,3.48e-06]
[1748655052703,28.57302871,2510.9,2510.8,3.48e-06]
[1748655052901,28.57302871,2510.9,2509.6,5.093]
[1748655052902,1.99116,2510.1,2508.7,3.2078]
[1748655053105,0.7969,2508.7,2508.6,1.3171]
[1748655053609,4.00466,2508.9,2508.6,1.3171]
[1748655053804,3.2078,2509.0,2508.8,0.79687]
[1748655054009,0.00597348,2509.2,2508.9,1.343]
[1748655054212,0.00597348,2509.2,2509.0,5.093]
[1748655054403,0.00597348,2509.2,2509.1,1.343]
[1748655054907,0.80271348,2509.2,2509.1,1.343]
[1748655055708,0.79677,2509.1,2509.0,5.093]
[1748655056014,0.00597348,2509.2,2509.0,5.093]
[1748655056507,0.79677,2509.1,2509.0,5.093]
[1748655057112,0.00597348,2509.2,2508.7,1.343]
[1748655057304,4.00467,2508.8,2508.7,6.437]
[1748655058002,3.2078,2508.8,2508.7,6.437]
[1748655058201,4.00467,2508.8,2508.7,5.094]
[1748655059508,0.7969,2508.7,2508.6,0.00597348]
[1748655059708,2.0739,2508.7,2508.6,0.00597348]
[1748655059907,1.0079,2509.0,2508.6,0.00597348]
[1748655060112,0.7969,2508.7,2508.6,0.00597348]
[1748655060308,4.0047,2508.7,2508.6,3.48e-06]
[1748655060516,0.79709,2508.1,2508.0,6.3651]
[1748655060706,4.00489,2508.1,2508.0,5.095]
[1748655061108,0.79725,2507.6,2507.5,1.2701]
[1748655061309,3.2078,2507.6,2507.5,6.3651]
[1748655061515,4.00505,2507.6,2507.5,6.3651]
[1748655061713,3.2078,2507.6,2507.5,1.2701]
[1748655061913,0.00597348,2507.8,2507.7,0.79722]
[1748655062118,0.00597348,2507.8,2507.7,5.89222]
[1748655062412,0.00597348,2507.8,2507.7,5.095]
[1748655063109,0.79725,2507.6,2507.5,1.7942]
[1748655063315,3.21377348,2507.8,2507.5,1.2701]
[1748655063316,0.79724,2507.7,2507.5,1.2701]
[1748655063714,0.00597348,2507.8,2507.7,0.79722]
[1748655063912,0.00597348,2507.8,2507.7,4.00502]
[1748655064213,0.00597348,2507.8,2507.7,14.10102]
[1748655065816,0.00597348,2507.8,2507.7,5.096]
[1748655066220,0.00597348,2507.8,2507.7,5.89322]
[1748655066517,0.00597348,2507.8,2507.7,10.89322]
[1748655066720,0.00597348,2507.8,2507.7,5.096]
[1748655067226,0.80316348,2507.8,2507.7,5.096]
[1748655067516,3.21377348,2507.8,2507.5,1.3619]
[1748655067715,0.00597348,2507.8,2507.5,1.3619]
[1748655067912,0.00597348,2507.8,2507.7,0.79722]
[1748655068119,0.00597348,2507.8,2507.7,4.00502]
[1748655068315,0.00597348,2507.8,2507.7,9.00502]
[1748655068514,3.48e-06,2507.8,2507.7,9.00502]
[1748655069318,1.0817,2509.3,2507.7,8.2078]
[1748655069513,3.2078,2509.4,2509.1,0.79677]
[1748655069723,0.79684,2508.9,2508.8,5.097]
[1748655069921,0.00597348,2509.1,2508.8,5.097]
[1748655070120,0.00597348,2509.1,2509.0,0.79681]
[1748655070418,3.2078,2510.1,2509.2,1.99186]
[1748655070620,2.32039167,2510.7,2508.9,2.3043]
[1748655070621,0.79644,2510.2,2509.7,3.2078]
[1748655070817,0.79645,2510.2,2509.8,6.3564]
[1748655071127,3.2078,2510.4,2510.0,3.2078]
[1748655071320,3.2078,2510.4,2510.1,1.2594]
[1748655071619,4.00418,2510.4,2510.1,2.2782]
[1748655071918,3.2078,2510.4,2510.1,2.2782]
[1748655072120,3.2078,2510.4,2510.2,1.3295]
[1748655072314,0.00597348,2510.5,2510.3,8.3048]
[1748655072515,0.00597348,2510.5,2510.4,1.3295]
[1748655073115,0.00597348,2510.5,2510.3,5.097]
[1748655073116,0.79642,2510.3,2510.0,3.2078]
[1748655073320,0.79636,2510.4,2510.1,1.3295]
[1748655073524,4.01011348,2510.5,2510.1,1.3295]
[1748655073726,0.00597348,2510.5,2510.1,1.3295]
[1748655073923,0.00597348,2510.5,2510.2,0.79641]
[1748655074125,0.00597348,2510.5,2510.4,0.79636]
[1748655074328,0.00597348,2510.5,2510.4,5.082]
[1748655074518,0.00597348,2510.5,2510.4,6.4115]
[1748655075530,0.80230348,2510.5,2510.4,1.3295]
[1748655075721,0.79636,2510.4,2510.3,5.082]
[1748655075923,0.79646,2510.1,2510.0,1.3344]
[1748655076126,1.37477348,2510.5,2510.0,1.3344]
[1748655076127,3.2078,2510.2,2510.0,1.3344]
[1748655076327,4.00424,2510.2,2510.0,1.3344]
[1748655076723,3.2078,2510.2,2510.0,1.3344]
[1748655077823,0.79646,2510.1,2509.9,0.00597348]
[1748655078027,0.79668,2509.4,2509.3,5.082]
[1748655078330,4.00448,2509.4,2509.3,6.3937]
[1748655078627,3.2078,2509.4,2508.7,5.082]
[1748655078833,3.2078,2508.8,2508.4,5.082]
[1748655079228,0.00597348,2508.9,2508.8,0.79687]
[1748655079425,0.00597348,2508.9,2508.8,4.00467]
[1748655079929,3.2078,2509.6,2508.8,8.2078]
[1748655080132,0.79681,2509.0,2508.9,5.082]
[1748655080632,0.79681,2509.0,2508.3,0.00597348]
[1748655080633,0.79698,2508.5,2508.4,5.082]
[1748655081330,3.2078,2508.6,2508.4,5.082]
[1748655081731,3.2078,2508.6,2508.4,5.158]
[1748655081923,0.79696,2508.5,2508.4,5.158]
[1748655082425,2.08726,2508.5,2508.4,5.158]
[1748655083223,7.08726,2508.5,2508.4,5.158]
[1748655083528,6.2903,2508.5,2507.5,5.082]
[1748655083722,0.79728,2507.5,2507.4,5.082]
[1748655084030,3.2078,2507.7,2507.1,5.082]
[1748655084232,3.2078,2507.4,2507.1,6.4574]
[1748655084729,0.79735,2507.3,2507.2,1.3754]
[1748655085134,3.2078,2507.4,2507.2,1.3754]
[1748655085332,4.00514,2507.4,2507.2,1.3754]
[1748655085826,3.2078,2507.4,2507.3,0.79735]
[1748655086028,1.0624,2508.6,2507.6,0.79725]
[1748655086229,3.2078,2508.6,2508.0,3.2078]
[1748655086421,3.2078,2508.9,2508.3,3.2078]
[1748655086627,3.2078,2508.9,2508.4,6.4594]
[1748655086828,3.2078,2508.9,2508.5,5.084]
[1748655086829,0.00597348,2508.7,2508.5,5.084]
[1748655087127,0.00597348,2508.7,2508.6,4.00473]
[1748655087332,0.00597348,2508.7,2508.6,5.27733]
[1748655088329,0.00597348,2508.7,2508.5,5.084]
[1748655088523,0.00597348,2508.7,2508.5,6.3566]
[1748655088734,0.00597348,2508.7,2508.5,5.88096]
[1748655089032,0.00597348,2508.7,2508.6,1.2726]
[1748655089531,0.00597348,2508.7,2508.5,5.084]
[1748655089723,0.79693,2508.6,2508.5,5.084]
[1748655090136,4.00473,2508.6,2508.5,5.084]
[1748655090632,3.2078,2508.6,2508.5,5.084]
[1748655090835,3.2078,2508.6,2508.5,5.88096]
[1748655091132,0.797,2508.4,2508.3,0.00597348]
[1748655091326,0.79704,2508.3,2507.9,0.79715]
[1748655091525,0.79704,2508.3,2507.7,5.083]
[1748655091526,1.3707,2508.3,2507.8,0.79717]
[1748655091835,0.79709,2508.1,2507.9,1.2741]
[1748655092032,1.3707,2508.3,2507.9,1.2741]
[1748655092236,1.9893,2508.6,2507.9,1.2741]
[1748655092535,2.16767,2508.5,2508.1,0.79707]
[1748655092737,2.16767,2508.5,2508.0,0.79711]
[1748655092938,0.79701,2508.4,2508.1,1.2741]
[1748655093132,4.5785,2508.4,2507.7,0.79722]
[1748655093331,4.5785,2508.4,2507.8,5.083]
[1748655093530,5.3755,2508.4,2508.0,0.79711]
[1748655093733,0.79706,2508.2,2507.9,1.2879]
[1748655094138,0.79705,2508.3,2507.9,2.08505]
[1748655094432,1.2833,2508.2,2507.8,5.88016]
[1748655094636,1.2833,2508.2,2508.0,0.79711]
[1748655094937,3.2078,2508.1,2507.4,5.084]
[1748655095129,0.79728,2507.5,2507.4,5.084]
[1748655095335,3.2078,2507.6,2507.1,1.2879]
[1748655095536,1.2833,2507.4,2507.1,2.08529]
[1748655095737,4.00508,2507.6,2507.2,0.79737]
[1748655095937,0.79733,2507.4,2507.2,1.2879]
[1748655096144,0.79735,2507.3,2507.2,1.2879]
[1748655096333,0.79733,2507.4,2507.2,1.2879]
[1748655096638,3.2078,2507.6,2507.2,1.2879]
[1748655096826,2.2701,2507.8,2507.2,1.2879]
[1748655097032,3.06729,2507.8,2507.2,1.2879]
[1748655097234,3.2078,2507.9,2507.4,0.7973]
[1748655097542,3.2078,2507.9,2507.5,1.2502]
[1748655097743,0.79724,2507.7,2507.5,1.2502]
[1748655097942,0.79725,2507.6,2507.5,1.2502]
[1748655098336,1.2774,2507.8,2507.5,1.2502]
[1748655098537,0.79725,2507.6,2507.5,1.2502]
[1748655099032,3.2078,2507.9,2507.5,9.542]
[1748655099233,3.2078,2508.1,2507.5,1.2502]
[1748655099437,0.79733,2507.4,2507.1,5.084]
[1748655099651,3.2078,2507.4,2507.1,6.3333]
[1748655099839,0.79736,2507.3,2507.1,6.3333]
[1748655100036,0.79738,2507.2,2507.1,6.3333]
[1748655100240,3.21377348,2507.4,2507.1,6.3333]
[1748655100444,0.79736,2507.3,2507.2,1.2493]
[1748655100839,0.00597348,2507.4,2507.2,1.2493]
[1748655101138,0.00597348,2507.4,2507.3,0.79735]
[1748655101345,0.00597348,2507.4,2507.2,2.04666]
[1748655101545,0.00597348,2507.4,2507.3,1.2493]
[1748655102048,0.80328348,2507.4,2507.3,1.2493]
[1748655102350,0.79738,2507.2,2507.1,5.084]
[1748655102741,0.00597348,2507.4,2507.1,5.084]
[1748655102946,0.79738,2507.2,2507.1,5.084]
[1748655103144,4.00518,2507.2,2507.1,5.084]
[1748655103344,0.79735,2507.3,2507.1,5.084]
[1748655103545,0.79735,2507.3,2507.2,1.375]
[1748655103947,5.0,2507.3,2506.6,2.0417]
[1748655104145,3.2078,2507.2,2506.4,3.2078]
[1748655104344,3.2078,2507.2,2506.6,1.375]
[1748655104345,0.79752,2506.8,2506.6,1.375]
[1748655104650,0.79752,2506.8,2506.7,5.079]
[1748655105149,3.2078,2507.3,2506.7,13.2868]
[1748655105444,0.00597348,2507.4,2507.2,3.2078]
[1748655105651,0.80328348,2507.4,2507.3,6.3266]
[1748655106147,0.79746,2507.0,2506.8,5.08]
[1748655106344,3.2078,2507.2,2506.6,1.2476]
[1748655106649,0.79757,2506.6,2506.5,3.2078]
[1748655107157,0.79747,2506.9,2506.5,3.2078]
[1748655107448,3.2078,2507.0,2506.5,4.2239]
[1748655107649,0.79762,2506.5,2506.3,5.08]
[1748655108050,0.79761,2506.5,2506.3,5.08]
[1748655108254,0.79757,2506.6,2506.3,5.08]
[1748655108548,1.99393,2506.6,2505.9,4.2239]
[1748655108747,0.79772,2506.2,2505.9,1.0161]
[1748655108946,0.79771,2506.2,2505.9,1.0161]
[1748655109142,0.79773,2506.1,2505.9,1.0161]
[1748655109342,0.7977,2506.2,2505.9,1.81388]
[1748655109554,3.2078,2506.4,2505.9,1.0161]
[1748655109956,0.79771,2506.2,2505.9,1.0161]
[1748655110142,3.2078,2506.4,2505.6,3.2078]
[1748655110347,0.79787,2505.7,2505.3,5.04917]
[1748655110542,0.00598552,2505.8,2505.6,0.79787]
[1748655110846,0.00598552,2505.8,2505.3,5.04917]
[1748655111051,0.00598552,2505.8,2505.3,4.2512]
[1748655111250,0.79792,2505.6,2505.3,4.2512]
[1748655111447,0.00598552,2505.8,2505.3,4.2512]
[1748655111651,0.7979,2505.6,2505.3,4.2512]
[1748655111851,0.7979,2505.6,2505.3,5.04918]
[1748655112052,0.00598552,2505.8,2505.3,3.2078]